bitfinex/quotes_SOLUSD_20220105
["timestamp","ask_amount","ask_price","bid_price","bid_amount"]
[1641395978295,31.9066,168.57,168.42,25.23113495]
[1641395979119,31.6466,168.57,168.43,8.54]
[1641395979620,31.6466,168.57,168.44,0.78197402]
[1641395979826,22.5466,168.57,168.44,0.78197402]
[1641395980122,22.5466,168.57,168.45,8.54]
[1641395980520,22.5466,168.57,168.45,8.8]
[1641395980721,24.9460875,168.57,168.46,2.4716117]
[1641395980923,24.9460875,168.57,168.47,8.54]
[1641395981322,25.4460875,168.57,168.47,8.54]
[1641395981721,25.7060875,168.57,168.47,8.54]
[1641395982222,25.4460875,168.57,168.47,8.54]
[1641395982423,25.7060875,168.57,168.47,8.54]
[1641395989025,0.06,168.56,168.47,8.54]
[1641395991636,0.06,168.56,168.47,8.8]
[1641395997576,0.06,168.56,168.47,8.54]
[1641396004488,0.06,168.56,168.47,8.8]
[1641396005490,0.06,168.56,168.47,8.54]
[1641396011794,0.06,168.56,168.47,8.8]
[1641396012395,0.06,168.56,168.47,8.54]
[1641396015299,0.06,168.56,168.47,8.8]
[1641396016927,0.06,168.56,168.48,0.62308306]
[1641396017125,0.06,168.56,168.49,2.6234677]
[1641396018232,0.06,168.56,168.49,8.8644677]
[1641396018430,0.06,168.56,168.5,8.54]
[1641396020432,0.06,168.56,168.5,8.8]
[1641396022033,0.06,168.56,168.5,15.419]
[1641396022234,0.06,168.56,168.51,22.6916]
[1641396022433,0.06,168.56,168.52,8.54]
[1641396022634,0.06,168.56,168.53,24.7156]
[1641396022835,0.06,168.56,168.54,8.54]
[1641396023037,0.06,168.56,168.55,94.62625683]
[1641396023238,0.06,168.56,168.55,103.16625683]
[1641396023435,0.06,168.56,168.55,107.2199488]
[1641396024839,0.06,168.56,168.55,103.16625683]
[1641396026341,0.06,168.56,168.55,103.42625683]
[1641396029342,0.06,168.56,168.55,11.66155683]
[1641396029943,0.06,168.56,168.55,8.8]
[1641396030144,3.09219997,168.56,168.55,8.54]
[1641396030347,6.12439994,168.56,168.52,8.54]
[1641396031146,6.12439994,168.56,168.53,3.03925787]
[1641396031945,6.12439994,168.56,168.53,11.57925787]
[1641396033654,3.09219997,168.56,168.53,8.8]
[1641396034352,0.06,168.56,168.53,8.8]
[1641396034551,0.06,168.56,168.53,11.27763758]
[1641396038082,0.06,168.56,168.53,17.44463758]
[1641396038381,0.06,168.56,168.53,26.33873758]
[1641396038581,0.06,168.56,168.53,37.46284676]
[1641396038781,0.06,168.56,168.54,1.152725]
[1641396038982,0.06,168.56,168.55,74.54]
[1641396041284,0.06,168.56,168.55,74.8]
[1641396043787,99.2612,168.7,168.55,74.8]
[1641396043988,99.7612,168.7,168.56,24.2372]
[1641396044188,99.7612,168.7,168.57,8.54]
[1641396044390,99.7612,168.7,168.58,24.8988]
[1641396044587,2.89660575,168.69,168.59,10.98936489]
[1641396044988,3.65660575,168.69,168.59,10.98936489]
[1641396046997,3.65660575,168.69,168.59,8.54]
[1641396048895,3.65660575,168.69,168.53,8.54]
[1641396049094,24.453,168.68,168.53,31.1152]
[1641396049496,25.213,168.68,168.53,31.1152]
[1641396049696,25.213,168.68,168.54,2.74829718]
[1641396050094,33.753,168.68,168.54,2.74829718]
[1641396059636,33.493,168.68,168.54,2.74829718]
[1641396059838,33.493,168.68,168.54,11.28829718]
[1641396060037,24.953,168.68,168.55,0.06]
[1641396060240,24.953,168.68,168.56,8.54]
[1641396060637,24.953,168.68,168.57,23.4855]
[1641396060836,24.953,168.68,168.57,23.5455]
[1641396061638,24.953,168.68,168.58,8.54]
[1641396062537,25.213,168.68,168.58,8.54]
[1641396062736,24.953,168.68,168.58,8.54]
[1641396063943,25.213,168.68,168.58,8.54]
[1641396065047,25.213,168.68,168.58,8.8]
[1641396069859,0.5,168.68,168.58,13.888]
[1641396070156,76.4768,168.7,168.59,0.06]
[1641396070357,76.4768,168.7,168.6,8.54]
[1641396070558,1.65413737,168.75,168.61,0.06]
[1641396070756,1.65413737,168.75,168.62,8.54]
[1641396070958,2.81517681,168.74,168.63,27.50024565]
[1641396071167,2.81517681,168.74,168.64,8.54]
[1641396071558,3.31517681,168.74,168.64,8.54]
[1641396073383,3.31517681,168.74,168.64,8.8]
[1641396073995,3.31517681,168.74,168.65,0.06]
[1641396074185,3.31517681,168.74,168.66,8.54]
[1641396074990,2.81517681,168.74,168.66,8.54]
[1641396075288,2.81517681,168.74,168.66,11.33197221]
[1641396075587,2.81517681,168.74,168.67,0.06]
[1641396077190,2.81517681,168.74,168.67,2.57134198]
[1641396077597,2.81517681,168.74,168.67,0.06]
[1641396078592,2.81517681,168.74,168.67,3.03175184]
[1641396080694,2.81517681,168.74,168.67,11.51175184]
[1641396081898,2.31517681,168.74,168.67,11.51175184]
[1641396084103,2.31517681,168.74,168.67,11.77175184]
[1641396087706,2.31517681,168.74,168.67,8.8]
[1641396087908,96.1898,168.76,168.67,8.8]
[1641396088110,3.1086737,168.77,168.67,8.8]
[1641396088309,3.6086737,168.77,168.68,0.06]
[1641396088609,3.6086737,168.77,168.69,8.54]
[1641396089108,3.6086737,168.77,168.7,2.39026456]
[1641396091610,3.6086737,168.77,168.7,2.65026456]
[1641396093814,3.6086737,168.77,168.7,2.39026456]
[1641396095213,3.6086737,168.77,168.7,2.65026456]
[1641396095816,3.1086737,168.77,168.7,2.65026456]
[1641396097315,3.1086737,168.77,168.7,2.39026456]
[1641396097515,3.3686737,168.77,168.7,2.39026456]
[1641396098647,3.3686737,168.77,168.7,2.65026456]
[1641396102224,3.3686737,168.77,168.7,11.19026456]
[1641396106951,3.3686737,168.77,168.71,0.06]
[1641396110853,3.8686737,168.77,168.71,0.06]
[1641396112857,3.6086737,168.77,168.71,0.06]
[1641396114458,3.1086737,168.77,168.71,0.06]
[1641396120070,3.1086737,168.77,168.72,8.54]
[1641396120671,3.1086737,168.77,168.73,0.06]
[1641396120873,3.1086737,168.77,168.74,8.54]
[1641396121071,3.1086737,168.77,168.75,2.23434719]
[1641396121271,3.1086737,168.77,168.75,10.77434719]
[1641396121873,3.1086737,168.77,168.75,10.71434719]
[1641396122271,3.1086737,168.77,168.76,0.06]
[1641396122772,7.37e-05,168.77,168.76,54.06]
[1641396123074,7.37e-05,168.77,168.76,62.6]
[1641396124273,7.37e-05,168.77,168.76,62.86]
[1641396124673,7.37e-05,168.77,168.76,71.7424]
[1641396124901,7.37e-05,168.77,168.76,62.86]
[1641396125075,7.37e-05,168.77,168.76,64.3364775]
[1641396125977,0.39107348,168.8,168.79,55.25451245]
[1641396126174,0.39107348,168.8,168.79,63.79451245]
[1641396128678,0.39107348,168.8,168.79,63.73451245]
[1641396129082,0.39107348,168.8,168.79,65.21098995]
[1641396129482,0.39107348,168.8,168.79,63.73451245]
[1641396130681,0.39107348,168.8,168.79,10.73451245]
[1641396132281,0.39107348,168.8,168.79,8.8]
[1641396133908,0.39107348,168.8,168.79,8.54]
[1641396134509,6.45547342,168.8,168.79,8.54]
[1641396134709,6.45547342,168.8,168.76,8.54]
[1641396134910,9.21620437,168.8,168.76,8.54]
[1641396135712,9.21620437,168.8,168.73,2.55415497]
[1641396136112,9.21620437,168.8,168.73,2.81415497]
[1641396136314,9.21620437,168.8,168.73,2.55415497]
[1641396137814,9.21620437,168.8,168.73,2.81415497]
[1641396138217,9.21620437,168.8,168.73,2.87415497]
[1641396140119,9.47620437,168.8,168.73,2.87415497]
[1641396144521,9.21620437,168.8,168.73,2.87415497]
[1641396145318,34.54960151,168.8,168.73,0.06]
[1641396146018,24.1061,168.79,168.73,0.06]
[1641396146518,24.8661,168.79,168.73,0.06]
[1641396152525,24.3661,168.79,168.73,0.06]
[1641396153427,99.4778,168.79,168.73,0.06]
[1641396153926,99.9778,168.79,168.73,0.06]
[1641396157734,99.7178,168.79,168.73,0.06]
[1641396158131,99.2178,168.79,168.73,0.06]
[1641396158532,99.2178,168.79,168.73,2.27755709]
[1641396159533,99.4778,168.79,168.73,2.27755709]
[1641396161133,99.4778,168.79,168.73,0.06]
[1641396164837,99.2178,168.79,168.73,0.06]
[1641396166963,99.4778,168.79,168.73,1.5364775]
[1641396167362,99.2178,168.79,168.73,1.5364775]
[1641396167665,99.2178,168.79,168.73,0.06]
[1641396167861,99.4778,168.79,168.73,0.06]
[1641396169262,99.9778,168.79,168.73,0.06]
[1641396170464,99.2178,168.79,168.73,0.06]
[1641396172468,99.2178,168.79,168.74,2.38282052]
[1641396172668,24.1061,168.79,168.74,9.07782052]
[1641396172871,24.1061,168.79,168.75,8.54]
[1641396173268,3.15180443,168.8,168.75,8.54]
[1641396173468,3.15180443,168.8,168.75,10.0164775]
[1641396174068,3.15180443,168.8,168.75,8.54]
[1641396179373,3.65180443,168.8,168.75,8.54]
[1641396181875,3.15180443,168.8,168.75,8.54]
[1641396183077,2.76073095,168.8,168.75,8.54]
[1641396183279,3.02073095,168.8,168.75,8.54]
[1641396183480,2.76073095,168.8,168.75,8.54]
[1641396184981,2.76073095,168.8,168.75,3.54]
[1641396185488,3.02073095,168.8,168.75,3.54]
[1641396185684,3.52073095,168.8,168.73,0.06]
[1641396186485,23.4162,168.79,168.73,0.06]
[1641396186885,24.1762,168.79,168.73,0.06]
[1641396189888,4.94,168.73,168.69,23.9165]
[1641396190089,4.94,168.73,168.68,10.0164775]
[1641396190690,4.94,168.73,168.68,10.2764775]
[1641396190889,4.94,168.73,168.69,3.00211267]
[1641396193494,4.94,168.73,168.7,8.54]
[1641396194894,6.06439994,168.72,168.7,3.54]
[1641396195899,3.03219997,168.72,168.7,3.54]
[1641396196394,4.94,168.73,168.7,3.54]
[1641396197999,4.94,168.73,168.71,1.4764775]
[1641396198198,4.94,168.73,168.72,39.01840215]
[1641396198598,4.94,168.73,168.72,40.49234347]
[1641396198998,2.9511,168.73,168.72,40.49234347]
[1641396199999,2.9511,168.73,168.72,10.01394132]
[1641396200401,0.0001,168.73,168.72,45.01394132]
[1641396200601,0.0001,168.73,168.72,43.54]
[1641396201209,0.0001,168.73,168.72,45.01394132]
[1641396201402,0.0001,168.73,168.72,45.27394132]
[1641396205012,6.06449994,168.73,168.72,5.27394132]
[1641396205314,0.0001,168.73,168.72,5.27394132]
[1641396205514,0.0001,168.73,168.72,3.54]
[1641396206711,3.03229997,168.73,168.72,3.54]
[1641396207530,3.03219997,168.73,168.72,3.54]
[1641396207932,29.03219997,168.73,168.72,3.54]
[1641396208936,24.2769,168.78,168.72,3.54]
[1641396209136,23.1779,168.83,168.72,3.54]
[1641396209332,23.105,168.82,168.72,5.01394132]
[1641396209839,23.105,168.82,168.72,0.01394132]
[1641396210033,2.87915326,168.81,168.73,2.41098558]
[1641396210235,2.87915326,168.81,168.74,8.54]
[1641396212234,2.87915326,168.81,168.74,17.6839]
[1641396212634,2.87915326,168.81,168.74,8.54]
[1641396213237,3.63915326,168.81,168.74,8.54]
[1641396213638,31.4908671,168.81,168.71,10.82752884]
[1641396213841,24.3656,168.8,168.71,10.82752884]
[1641396214039,24.6256,168.8,168.71,10.82752884]
[1641396214238,25.1256,168.8,168.71,10.82752884]
[1641396214438,25.1256,168.8,168.71,11.08752884]
[1641396215038,5.0,168.74,168.71,11.08752884]
[1641396215441,6.06439994,168.73,168.71,11.08752884]
[1641396218144,5.0,168.74,168.71,11.08752884]
[1641396218545,6.06439994,168.73,168.71,11.08752884]
[1641396219044,5.0,168.74,168.71,11.08752884]
[1641396219244,5.0,168.74,168.72,1.47029994]
[1641396219446,5.0,168.74,168.73,35.54]
[1641396220046,5.0,168.74,168.73,30.54]
[1641396224954,11.06439994,168.74,168.73,25.54]
[1641396225354,5.0,168.74,168.73,25.54]
[1641396227859,5.0,168.74,168.73,31.855]
[1641396228056,4.4018,168.74,168.73,73.86529994]
[1641396228257,23.015,168.84,168.74,49.4816]
[1641396228458,23.015,168.84,168.75,8.54]
[1641396228656,2.85995912,168.83,168.76,1.94625923]
[1641396228864,2.85995912,168.83,168.77,8.54]
[1641396229064,2.85995912,168.83,168.77,15.229]
[1641396230163,2.85995912,168.83,168.77,3.54]
[1641396230764,23.015,168.84,168.77,3.54]
[1641396231368,23.015,168.84,168.77,10.257]
[1641396231573,22.5783,168.87,168.77,10.257]
[1641396231767,2.93209603,168.88,168.77,117.047]
[1641396232168,2.93209603,168.88,168.79,8.881]
[1641396232367,2.93209603,168.88,168.8,6.18588495]
[1641396232768,238.1565,168.95,168.8,6.18588495]
[1641396232969,238.4165,168.95,168.81,23.4157]
[1641396233169,238.4165,168.95,168.81,29.1037]
[1641396233569,127.2573,168.95,168.81,29.1037]
[1641396233992,2.7744364,168.91,168.81,29.1037]
[1641396235191,127.4973,168.95,168.81,39.45389994]
[1641396235392,126.9973,168.95,168.81,30.57399994]
[1641396235591,126.9973,168.95,168.81,137.36399994]
[1641396235792,126.9973,168.95,168.83,106.79]
[1641396236191,2.57013596,168.93,168.84,1.94625923]
[1641396236593,126.9973,168.95,168.84,1.94625923]
[1641396236795,127.4973,168.95,168.84,1.94625923]
[1641396237593,2.58273835,168.92,168.84,1.94625923]
[1641396237793,2.58273835,168.92,168.84,10.82455923]
[1641396238394,0.39107348,168.92,168.84,10.82455923]
[1641396239400,0.39107348,168.92,168.84,1.94625923]
[1641396239401,2.84443863,168.92,168.84,1.94625923]
[1641396241202,0.39107348,168.92,168.84,1.94625923]
[1641396241401,0.39107348,168.92,168.84,12.29465917]
[1641396241800,0.39107348,168.92,168.84,11.08435923]
[1641396242005,0.39107348,168.92,168.84,34.40125923]
[1641396242402,0.39107348,168.92,168.84,35.87155917]
[1641396242603,0.39107348,168.92,168.85,8.8775]
[1641396243001,23.3103,168.95,168.85,115.6675]
[1641396243402,23.3103,168.95,168.85,117.13779994]
[1641396243603,23.3103,168.95,168.85,124.10379994]
[1641396244202,23.3103,168.95,168.85,122.6335]
[1641396244607,23.3103,168.95,168.85,124.10379994]
[1641396244803,2.70084022,168.94,168.85,117.13779994]
[1641396245002,2.70084022,168.94,168.85,106.79]
[1641396247211,2.70084022,168.94,168.85,107.05]
[1641396250110,2.70084022,168.94,168.85,106.79]
[1641396250309,3.46084022,168.94,168.81,9.0143]
[1641396250509,22.5059,168.93,168.81,9.0143]
[1641396250710,22.5059,168.93,168.81,10.48206932]
[1641396250909,23.2659,168.93,168.81,1.46776932]
[1641396251110,23.2659,168.93,168.8,2.94733239]
[1641396255913,23.2659,168.93,168.76,8.6851]
[1641396256314,23.2659,168.93,168.76,10.15286932]
[1641396256718,74.015,168.92,168.76,10.15286932]
[1641396257014,22.93855344,168.91,168.76,10.15286932]
[1641396257215,24.3986,168.9,168.77,2.89352802]
[1641396257416,24.8986,168.9,168.77,2.89352802]
[1641396257614,25.1586,168.9,168.77,2.89352802]
[1641396257815,25.1586,168.9,168.78,1.46776932]
[1641396258418,25.1586,168.9,168.78,26.24976932]
[1641396258617,24.8986,168.9,168.78,26.24976932]
[1641396258814,24.8986,168.9,168.8,1.34026005]
[1641396260017,25.1586,168.9,168.8,2.80802937]
[1641396260216,24.8986,168.9,168.8,3.06802937]
[1641396262120,24.3986,168.9,168.8,3.06802937]
[1641396263220,24.3986,168.9,168.81,0.70948998]
[1641396263619,2.5564284,168.91,168.82,1.46776932]
[1641396263823,2.5564284,168.91,168.83,2.87293781]
[1641396264219,2.5564284,168.91,168.84,1.46776932]
[1641396266524,2.5564284,168.91,168.8,24.744]
[1641396266725,2.5564284,168.91,168.81,2.16243321]
[1641396266926,26.3909284,168.91,168.81,2.16243321]
[1641396267449,26.3909284,168.91,168.81,3.63020253]
[1641396269857,26.8909284,168.91,168.78,108.25776932]
[1641396270059,27.1509284,168.91,168.78,1.46776932]
[1641396270860,27.1509284,168.91,168.79,2.97905673]
[1641396271059,27.1509284,168.91,168.79,0.26]
[1641396271458,27.1509284,168.91,168.78,1.46776932]
[1641396271856,33.7089284,168.91,168.74,1.46776932]
[1641396272056,33.7089284,168.91,168.75,2.47367158]
[1641396272456,42.2489284,168.91,168.75,2.47367158]
[1641396272858,35.6909284,168.91,168.75,3.9414409]
[1641396273062,35.6909284,168.91,168.75,4.2014409]
[1641396273255,35.6909284,168.91,168.75,3.9414409]
[1641396273858,27.1509284,168.91,168.75,3.9414409]
[1641396276361,27.1509284,168.91,168.75,4.2014409]
[1641396280164,0.06,168.9,168.75,4.2014409]
[1641396284171,0.06,168.9,168.76,23.4056]
[1641396287673,0.06,168.9,168.76,23.6656]
[1641396288074,0.06,168.9,168.76,0.26]
[1641396288474,0.06,168.9,168.75,79.2038409]
[1641396290377,0.06,168.9,168.76,23.0179]
[1641396290780,0.06,168.9,168.76,24.4820208]
[1641396292384,0.06,168.9,168.76,24.7420208]
[1641396294906,0.06,168.9,168.76,33.6246208]
[1641396295305,0.06,168.9,168.76,24.7420208]
[1641396298114,0.06,168.9,168.76,33.6246208]
[1641396299314,0.06,168.9,168.76,33.3646208]
[1641396300117,0.06,168.9,168.76,38.7436208]
[1641396300617,0.06,168.9,168.76,29.8610208]
[1641396300916,0.06,168.9,168.76,136.6510208]
[1641396302119,0.06,168.9,168.8,2.73675588]
[1641396302320,0.06,168.9,168.8,25.46545588]
[1641396302721,0.06,168.9,168.8,25.72545588]
[1641396303721,2.39526788,168.89,168.8,24.74881649]
[1641396307722,2.39526788,168.89,168.8,22.7287]
[1641396308128,2.65526788,168.89,168.8,22.7287]
[1641396308423,27.15356788,168.89,168.8,22.7287]
[1641396308624,27.15356788,168.89,168.76,3.44341602]
[1641396308827,26.65356788,168.89,168.77,24.9436]
[1641396309722,26.15356788,168.89,168.77,24.9436]
[1641396310723,26.15356788,168.89,168.77,25.2036]
[1641396312525,23.9983,168.89,168.77,25.2036]
[1641396312725,23.9983,168.89,168.77,26.66016348]
[1641396312926,74.015,168.92,168.77,26.66016348]
[1641396313127,23.1204,168.91,168.77,36.62775805]
[1641396313526,23.1204,168.91,168.8,8.8804]
[1641396313727,2.33216045,168.92,168.81,2.36357385]
[1641396314926,2.33216045,168.92,168.81,11.24367385]
[1641396315328,47.3196,168.95,168.81,11.24367385]
[1641396315529,99.1405,168.95,168.82,25.10586348]
[1641396315728,99.1405,168.95,168.82,30.78686348]
[1641396315928,98.6405,168.95,168.84,8.8782]
[1641396316328,98.6405,168.95,168.85,1.2372443]
[1641396316530,78.8957,168.99,168.85,3.54245589]
[1641396316731,23.8071,169.01,168.85,4.99901937]
[1641396316928,23.6539,169.0,168.86,1.45656348]
[1641396317128,23.6539,169.0,168.86,6.56456348]
[1641396317330,72.6849,169.04,168.86,6.56456348]
[1641396317531,72.6849,169.04,168.87,25.48066348]
[1641396317732,168.5085,169.05,168.89,106.79]
[1641396318332,168.5085,169.05,168.91,2.30521159]
[1641396318531,168.5085,169.05,168.93,8.8736]
[1641396318744,168.5085,169.05,168.94,2.14496571]
[1641396319733,75.8085,169.05,168.94,2.14496571]
[1641396319964,75.8085,169.05,168.94,11.01776571]
[1641396320360,75.3085,169.05,168.94,11.01776571]
[1641396320959,75.3085,169.05,168.94,2.14496571]
[1641396321559,75.3085,169.05,168.94,2.40496571]
[1641396321862,2.54550496,169.06,168.94,2.40496571]
[1641396322059,2.54550496,169.06,168.94,3.86152919]
[1641396322660,2.54550496,169.06,168.94,12.73402919]
[1641396323061,2.54550496,169.06,168.94,3.86152919]
[1641396324262,2.54550496,169.06,168.97,2.21396196]
[1641396326263,2.54550496,169.06,168.93,4.28117566]
[1641396326464,2.80550496,169.06,168.93,4.28117566]
[1641396326865,2.80550496,169.06,168.92,97.956]
[1641396327265,3.36550496,169.06,168.93,2.52418271]
[1641396327674,23.6038,169.05,168.93,2.78418271]
[1641396327870,23.6038,169.05,168.93,7.30101483]
[1641396328269,23.6038,169.05,168.93,8.75757831]
[1641396328869,2.54550496,169.06,168.94,8.8729]
[1641396329070,2.54550496,169.06,168.93,15.63457831]
[1641396329270,2.54550496,169.06,168.94,1.45656348]
[1641396330473,2.39550496,169.06,168.96,8.8719]
[1641396330672,2.39550496,169.06,168.97,2.35960537]
[1641396331673,2.39550496,169.06,168.98,1.45656348]
[1641396331873,2.39550496,169.06,168.97,2.35960537]
[1641396332074,0.06,169.05,168.97,2.35960537]
[1641396333075,0.06,169.05,168.97,2.61960537]
[1641396337784,0.06,169.05,168.97,2.35960537]
[1641396339383,0.06,169.05,168.97,2.61960537]
[1641396349322,2.93535441,169.04,168.97,2.61960537]
[1641396350723,23.2927,169.09,168.97,2.61960537]
[1641396351323,23.3527,169.09,168.97,2.35960537]
[1641396351523,3.01799099,169.08,169.05,0.54334843]
[1641396351725,3.01799099,169.08,168.97,2.35960537]
[1641396351923,29.32809994,169.07,168.97,2.35960537]
[1641396352726,29.32809994,169.07,168.97,2.61960537]
[1641396356427,29.32809994,169.07,168.97,4.07616885]
[1641396356827,29.32809994,169.07,168.97,2.35960537]
[1641396357027,29.32809994,169.07,168.95,23.3829]
[1641396357233,29.32809994,169.07,168.94,8.7234]
[1641396357234,29.58809994,169.07,168.94,8.7234]
[1641396357629,30.08809994,169.07,168.94,8.7234]
[1641396358029,30.08809994,169.07,168.95,2.92664838]
[1641396359033,29.82809994,169.07,168.95,2.92664838]
[1641396359232,29.82809994,169.07,168.94,8.7234]
[1641396359634,29.82809994,169.07,168.86,106.79]
[1641396360032,29.82809994,169.07,168.87,1.45656348]
[1641396360232,38.36809994,169.07,168.9,2.3864887]
[1641396360435,38.62809994,169.07,168.9,2.3864887]
[1641396360636,38.62809994,169.07,168.9,2.6464887]
[1641396362336,38.62809994,169.07,168.9,11.5215887]
[1641396362536,38.62809994,169.07,169.04,12.525089]
[1641396362737,15.42439994,169.07,169.04,12.525089]
[1641396364038,15.42439994,169.07,169.04,8.9e-05]
[1641396364237,24.2138,169.06,169.04,8.9e-05]
[1641396364438,83.06,169.05,169.04,8.9e-05]
[1641396364838,83.82,169.05,169.04,8.9e-05]
[1641396368164,89.88439994,169.05,169.04,8.9e-05]
[1641396371168,2.98975402,169.03,168.9,7.37406128]
[1641396371367,23.8801,169.02,168.9,7.37406128]
[1641396371567,24.1401,169.02,168.9,7.37406128]
[1641396371767,2.6133333,169.0,168.9,7.37406128]
[1641396372367,2.6133333,169.0,168.9,7.63406128]
[1641396376175,2.6133333,169.0,168.9,2.63406128]
[1641396377373,2.6133333,169.0,168.9,2.37406128]
[1641396377974,3.1133333,169.0,168.9,2.37406128]
[1641396379077,23.8801,169.02,168.9,2.37406128]
[1641396379476,23.8801,169.02,168.9,3.82699174]
[1641396379874,23.8801,169.02,168.9,27.26949174]
[1641396380075,26.40390013,169.02,168.9,27.26949174]
[1641396380275,26.40390013,169.02,168.9,27.52949174]
[1641396380877,23.8801,169.02,168.93,1.88661205]
[1641396381278,23.8801,169.02,168.92,5.76101205]
[1641396381477,23.8801,169.02,168.9,24.89543046]
[1641396381877,26.93931285,169.02,168.91,2.14090905]
[1641396382481,26.93931285,169.02,168.93,8.8736]
[1641396382980,26.93931285,169.02,168.94,1.45293046]
[1641396383578,3.05921285,169.02,168.93,8.8736]
[1641396383779,3.05921285,169.02,168.91,2.14090905]
[1641396383980,3.31921285,169.02,168.91,2.14090905]
[1641396384279,3.37921285,169.02,168.91,2.14090905]
[1641396384481,23.2795,169.01,168.91,2.14090905]
[1641396385084,23.2795,169.01,168.91,2.40090905]
[1641396386284,5.0,168.93,168.91,2.40090905]
[1641396386684,6.06439994,168.92,168.91,2.40090905]
[1641396386885,23.2795,169.01,168.92,35.0]
[1641396387587,2.96781516,169.0,168.92,35.0]
[1641396387787,72.9791,169.03,168.92,36.45293046]
[1641396387987,4.999911,168.93,168.92,36.45293046]
[1641396388387,4.999911,168.93,168.92,35.0]
[1641396388787,4.999911,168.93,168.92,35.26]
[1641396388987,4.999911,168.93,168.92,36.71293046]
[1641396389587,4.999911,168.93,168.92,35.26]
[1641396389987,4.999911,168.93,168.92,0.26]
[1641396390388,4.999911,168.93,168.89,8.9097]
[1641396390389,4.999911,168.93,168.89,9.1697]
[1641396390989,4.999911,168.93,168.9,1.74838182]
[1641396391224,5.0,168.92,168.9,1.74838182]
[1641396391389,5.0,168.92,168.9,2.00838182]
[1641396392790,5.0,168.92,168.9,11.91993195]
[1641396393190,5.0,168.92,168.9,13.37286241]
[1641396393590,5.0,168.92,168.9,11.91993195]
[1641396396296,5.0,168.92,168.91,0.53860975]
[1641396400526,3.82,168.92,168.91,46.53860975]
[1641396400930,3.82,168.92,168.91,46.79860975]
[1641396401129,3.82,168.92,168.91,0.26]
[1641396401527,3.82,168.92,168.9,9.1352]
[1641396406246,6.06439994,168.91,168.9,4.1352]
[1641396406538,0.8629,168.92,168.91,35.0]
[1641396406939,0.8629,168.92,168.9,3.8752]
[1641396407140,1.1e-05,168.93,168.89,8.9097]
[1641396407438,1.1e-05,168.93,168.9,22.5515]
[1641396408241,3.03219997,168.92,168.9,22.5515]
[1641396408439,3.03219997,168.92,168.89,8.9097]
[1641396409845,0.66409997,168.91,168.9,45.3681]
[1641396410041,1.1e-05,168.93,168.9,45.3681]
[1641396410244,1.1e-05,168.93,168.9,46.82103046]
[1641396410442,1.1e-05,168.93,168.91,23.2953]
[1641396411244,1.1e-05,168.93,168.9,0.26]
[1641396411946,1.1e-05,168.93,168.89,8.9097]
[1641396412347,1.1e-05,168.93,168.89,20.05811927]
[1641396415848,1.1e-05,168.93,168.89,28.93391927]
[1641396416248,1.1e-05,168.93,168.89,23.93391927]
[1641396417550,23.6009,168.99,168.89,23.93391927]
[1641396420452,23.6009,168.99,168.89,15.05811927]
[1641396421254,73.3245,169.01,168.89,15.05811927]
[1641396421452,73.3245,169.01,168.9,23.5401]
[1641396421754,73.3245,169.01,168.91,8.8749]
[1641396424463,0.06,169.09,168.92,108.24293046]
[1641396424657,72.9641,169.09,168.94,106.79]
[1641396425377,2.94513514,169.08,168.97,8.8717]
[1641396425576,22.6598,169.07,168.97,8.8717]
[1641396427981,22.6598,169.07,168.94,106.79]
[1641396428181,22.7198,169.07,168.94,106.79]
[1641396429384,22.7198,169.07,168.95,1.45041796]
[1641396430083,22.7198,169.07,168.95,25.54021796]
[1641396430282,22.6598,169.07,168.95,25.54021796]
[1641396430481,22.6598,169.07,168.97,106.79]
[1641396430682,72.9041,169.09,168.97,106.79]
[1641396430884,72.9041,169.09,168.98,1.45041796]
[1641396431084,72.9041,169.09,168.99,106.79]
[1641396431385,96.8559,169.09,168.99,106.79]
[1641396432586,96.8559,169.09,168.99,108.24041796]
[1641396432786,96.8559,169.09,169.01,8.8694]